fUST/lending_fUST_20260127
["ID","MTS","AMOUNT","RATE_DAILY","PERIOD"]
[403673614,1769464050233,-300.0,0.00013673,2]
[403673615,1769464050254,-500.0,0.00013699,2]
[403673616,1769464050281,-1000.0,0.00013821,2]
[403673617,1769464050302,-163.964,0.00013821,2]
[403673618,1769464050321,-300.0,0.00013989,2]
[403673619,1769464050340,-40723.92490006,0.0001399,2]
[403673620,1769464050360,-248.85648563,0.00014193,2]
[403673621,1769464050379,-1041.66666667,0.00014203,2]
[403673622,1769464050399,-615.39350161,0.00014221,2]
[403673623,1769464050418,-1000.0,0.00014247,2]
[403673624,1769464050438,-1500.0,0.00014368,2]
[403673625,1769464050458,-2355.41184062,0.0001479,2]
[403673626,1769464050477,-1500.0,0.00014795,2]
[403673627,1769464050496,-200.0,0.00014852,2]
[403673628,1769464050519,-399162.78660464,0.0001489,2]
[403673629,1769464050870,500.0,0.0003462,120]
[403673630,1769464051081,-944.00952162,0.0001489,2]
[403673658,1769464233277,284.32041093,0.0003462,120]
[403673664,1769464238285,-2275.87641151,0.0001314,2]
[403673665,1769464238475,-2724.12358849,0.0001314,2]
[403673666,1769464238485,-206.55733409,0.00013206,2]
[403673667,1769464238494,-500.0,0.00013273,2]
[403673668,1769464238503,-1041.66666667,0.00013698,2]
[403673669,1769464238512,-500.0,0.00013699,2]
[403673670,1769464238521,-500.0,0.00013821,2]
[403673671,1769464238530,-300.0,0.00013889,2]
[403673672,1769464238539,-45145.08331434,0.0001389,2]
[403673673,1769464238550,-338.50735059,0.0001389,2]
[403673674,1769464238568,-1741.53490475,0.0001389,2]
[403673675,1769464238579,-127638.2364093,0.0001389,2]
[403673676,1769464238590,-21218.66769616,0.0001389,2]
[403673718,1769464240479,-1326.66510949,0.0001389,2]
[403673725,1769464240538,-1473.19474389,0.0001389,2]
[403674053,1769464243379,-22806.38983847,0.0001389,2]
[403674056,1769464243392,-10506.92829731,0.0001389,2]
[403674058,1769464243403,-14184.76249413,0.0001389,2]
[403674068,1769464243490,-2439.32849533,0.0001389,2]
[403674070,1769464243502,-436.73908453,0.0001389,2]
[403674072,1769464243513,-6560.50386647,0.0001389,2]
[403674074,1769464243523,-1504.3502,0.0001389,2]
[403674079,1769464243552,-507.95318718,0.0001389,2]
[403674081,1769464243564,-415.20624435,0.0001389,2]
[403674255,1769464246432,-33056.03532177,0.0001389,2]
[403674263,1769464283358,500.0,0.0003462,120]
[403674295,1769464501197,500.0,0.00034587,120]
[403674296,1769464501447,500.0,0.00034587,120]
[403674297,1769464501698,500.0,0.00034587,120]
[403674298,1769464501953,500.0,0.00034587,120]
[403674299,1769464502349,500.0,0.00034587,120]
[403674300,1769464502709,500.0,0.00034587,120]
[403674301,1769464502843,505.485944,0.00034587,120]
[403674305,1769464565339,422.21440482,0.00034587,120]
[403674308,1769464615741,164.785,0.0003013,120]
[403674342,1769464802988,500.0,0.00034588,120]
[403674351,1769464995857,500.0,0.00034588,120]
[403674352,1769465007077,-695.0,0.00011156,2]
[403674353,1769465007105,-3610.01,0.00011269,2]
[403674354,1769465007187,-157.22432337,0.00011269,2]
[403674355,1769465013090,-1232.76567663,0.00011269,2]
[403674356,1769465013118,-203.35723207,0.00011326,2]
[403674357,1769465013148,-1200.0,0.00012327,2]
[403674358,1769465013179,-300.0,0.00012328,2]
[403674359,1769465013206,-589.59,0.00012329,2]
[403674360,1769465013235,-491.32,0.00012329,2]
[403674361,1769465013264,-180.74,0.00012329,2]
[403674362,1769465013292,-409.43,0.00012329,2]
[403674363,1769465013319,-341.2,0.00012329,2]
[403674364,1769465013481,-103.2041826,0.00012329,2]
[403674365,1769465058006,500.0,0.00034588,120]
[403674366,1769465077269,500.0,0.00034588,120]
[403674368,1769465159402,200.0,0.00023341,94]
[403674419,1769465359148,-198.66511912,0.00010933,2]
[403674420,1769465359170,-5000.0,0.00011043,2]
[403674421,1769465359192,-199.29008743,0.00011212,2]
[403674422,1769465359214,-300.0,0.00012328,2]
[403674423,1769465359235,-181.1258174,0.00012329,2]
[403674424,1769465359257,-236.94,0.00012329,2]
[403674425,1769465359280,-197.45,0.00012329,2]
[403674426,1769465359300,-164.54,0.00012329,2]
[403674427,1769465359321,-822.74,0.00012329,2]
[403674428,1769465359347,-300.0,0.00012574,2]
[403674429,1769465359369,-300.0,0.00012574,2]
[403674430,1769465359406,-300.0,0.00012574,2]
[403674431,1769465359431,-300.0,0.00012574,2]
[403674432,1769465359454,-300.0,0.00012574,2]
[403674433,1769465359477,-300.0,0.00012574,2]
[403674434,1769465359500,-300.0,0.00012574,2]
[403674435,1769465359523,-300.0,0.00012574,2]
[403674436,1769465359546,-300.0,0.00012574,2]
[403674437,1769465359570,-300.0,0.00012574,2]
[403674438,1769465359594,-300.0,0.00012574,2]
[403674439,1769465359616,-300.0,0.00012574,2]
[403674440,1769465359639,-300.0,0.00012574,2]
[403674441,1769465359662,-300.0,0.00012574,2]
[403674442,1769465359686,-300.0,0.00012574,2]
[403674443,1769465359710,-600.0,0.00012824,2]
[403674444,1769465359733,-235.16230317,0.00013212,2]
[403674445,1769465359753,-500.0,0.00013273,2]
[403674446,1769465359774,-500.0,0.00013273,2]
[403674447,1769465359796,-500.0,0.00013273,2]
[403674448,1769465359818,-500.0,0.00013273,2]
[403674449,1769465359840,-420.0,0.00013529,2]
[403674450,1769465359861,-1000.0,0.00013699,2]
[403674451,1769465359884,-500.0,0.00013699,2]
[403674452,1769465359905,-347.01948006,0.00013788,2]
[403674453,1769465359927,-500.0,0.00013788,2]
[403674454,1769465359947,-500.0,0.00013788,2]
[403674455,1769465359972,-500.0,0.00013788,2]
[403674456,1769465360001,-500.0,0.00013788,2]
[403674457,1769465360023,-500.0,0.00013788,2]
[403674458,1769465360047,-500.0,0.00013788,2]
[403674459,1769465360070,-500.0,0.00013788,2]
[403674460,1769465360091,-300.0,0.00013788,2]
[403674461,1769465360120,-182642.648349,0.00013789,2]
[403674509,1769465432253,-3320.76644445,0.0001289,2]
[403674511,1769465432265,-973.0,0.0001289,2]
[403674512,1769465432311,-489.0,0.0001289,2]
[403674520,1769465438370,-1432.62840904,0.0001289,2]
[403674521,1769465438427,-724.17268456,0.0001289,2]
[403674742,1769465443446,-6404.0,0.0001289,2]
[403674755,1769465446558,-2457.6,0.0001289,2]
[403674767,1769465480831,-169.46811375,0.0001289,2]
[403674768,1769465482671,197.83814929,0.00013082,2]
[403674774,1769465588704,500.0,0.00034588,120]
[403674779,1769465662662,500.0,0.0003458,120]
[403674780,1769465662892,500.0,0.0003458,120]
[403674786,1769465726014,500.0,0.0003458,120]
[403674787,1769465726248,500.0,0.0003458,120]
[403674789,1769465731286,500.0,0.0003458,120]
[403674876,1769465962373,-382.23774319,0.00012057,2]
[403674877,1769465962403,-193.88138631,0.00012664,2]
[403674907,1769466060449,500.0,0.000346,120]
[403674909,1769466060679,500.57946765,0.000346,120]
[403674911,1769466061935,538.91028626,0.000346,120]
[403674912,1769466062388,537.70430876,0.000346,120]
[403674917,1769466063847,500.0,0.000346,120]
[403674918,1769466064087,500.0,0.000346,120]
[403674919,1769466064331,500.0,0.000346,120]
[403674920,1769466064573,500.0,0.000346,120]
[403674921,1769466064942,500.0,0.000346,120]
[403674922,1769466065123,500.0,0.000346,120]
[403674923,1769466065178,500.0,0.000346,120]
[403674924,1769466065376,500.0,0.000346,120]
[403674925,1769466065414,500.0,0.000346,120]
[403674926,1769466065640,500.0,0.000346,120]
[403674927,1769466065874,500.0,0.000346,120]
[403674944,1769466213226,21458.14814916,0.000346,120]
[403674968,1769466333125,-182.44755838,0.00013271,2]
[403674992,1769466444709,-200.9261076,0.00012461,2]
[403674993,1769466444741,-190.00375858,0.00012866,2]
[403675008,1769466464742,500.0,0.000346,120]
[403675009,1769466464983,500.0,0.000346,120]
[403675010,1769466470179,500.0,0.000346,120]
[403675011,1769466470574,500.0,0.000346,120]
[403675012,1769466470690,500.0,0.000346,120]
[403675013,1769466470913,205.97572051,0.000346,120]
[403675057,1769466564188,-117.55244162,0.00013271,2]
[403675058,1769466564213,-300.0,0.00013271,2]
[403675059,1769466564234,-633.50646605,0.00013272,2]
[403675060,1769466564257,-608.0,0.00013272,2]
[403675061,1769466564279,-300.0,0.00013272,2]
[403675062,1769466564301,-1200.0,0.00013272,2]
[403675063,1769466564322,-500.0,0.00013273,2]
[403675064,1769466564343,-9049.73325079,0.00013273,2]
[403675108,1769466632525,-300.0,0.00013272,2]
[403675110,1769466632538,-300.0,0.00013272,2]
[403675112,1769466632550,-300.0,0.00013272,2]
[403675114,1769466632562,-25.36181593,0.00013272,2]
[403675116,1769466632575,-1174.63818407,0.00013272,2]
[403675118,1769466632591,-34976.66661633,0.00013273,2]
[403675120,1769466632605,-511.2604984,0.00013273,2]
[403675124,1769466632636,-905.60217242,0.00013273,2]
[403675126,1769466632649,-448.285,0.00013273,2]
[403675128,1769466632662,-476.52,0.00013273,2]
[403675150,1769466638499,-1249.84055842,0.00013273,2]
[403675152,1769466639002,-2382.09190364,0.00013273,2]
[403675153,1769466639013,-500.0,0.00013273,2]
[403675154,1769466639023,-500.0,0.00013273,2]
[403675155,1769466639033,-500.0,0.00013273,2]
[403675156,1769466639045,-500.0,0.00013273,2]
[403675157,1769466639055,-500.0,0.00013273,2]
[403675158,1769466639064,-1275.48549171,0.00013598,2]
[403675159,1769466639074,-11125.3082273,0.00013612,2]
[403675160,1769466639083,-186.95907295,0.00013688,2]
[403675161,1769466639093,-200.0,0.00013688,2]
[403675162,1769466639103,-49665.0272129,0.00013689,2]
[403675163,1769466639115,-152363.15625253,0.00013689,2]
[403675164,1769466639124,-1000.0,0.00013698,2]
[403675165,1769466639135,-1000.0,0.00013698,2]
[403675166,1769466639145,-580.60390572,0.00013698,2]
[403675167,1769466639155,-500.0,0.00013699,2]
[403675168,1769466639165,-1041.66666667,0.00013777,2]
[403675169,1769466639387,-261.25353591,0.00013788,2]
[403675170,1769466639405,-1000.0,0.00013821,2]
[403675171,1769466639415,-1000.0,0.00013821,2]
[403675172,1769466639424,-1000.0,0.00013821,2]
[403675173,1769466639434,-1000.0,0.00013821,2]
[403675174,1769466639443,-1000.0,0.00013821,2]
[403675175,1769466639452,-300.0,0.00013923,2]
[403675176,1769466639464,-300.0,0.00013923,2]
[403675177,1769466639473,-300.0,0.00013923,2]
[403675178,1769466639482,-300.0,0.00013923,2]
[403675179,1769466639491,-300.0,0.00013923,2]
[403675180,1769466639501,-300.0,0.00013923,2]
[403675181,1769466639510,-300.0,0.00013923,2]
[403675182,1769466639520,-300.0,0.00013923,2]
[403675183,1769466639530,-300.0,0.00013923,2]
[403675184,1769466639540,-300.0,0.00013923,2]
[403675185,1769466639549,-300.0,0.00013923,2]
[403675186,1769466639558,-300.0,0.00013923,2]
[403675187,1769466639568,-300.0,0.00013923,2]
[403675188,1769466639577,-300.0,0.00013923,2]
[403675189,1769466639589,-300.0,0.00013923,2]
[403675190,1769466639600,-1275.48549169,0.00014024,2]
[403675191,1769466639610,-600.0,0.00014064,2]
[403675192,1769466639619,-487.0,0.00014064,2]
[403675193,1769466639628,-487.0,0.00014064,2]
[403675194,1769466639638,-487.0,0.00014064,2]
[403675195,1769466639647,-487.0,0.00014064,2]
[403675196,1769466639656,-487.0,0.00014064,2]
[403675197,1769466639666,-487.0,0.00014064,2]
[403675198,1769466639675,-487.0,0.00014064,2]
[403675199,1769466639684,-487.0,0.00014064,2]
[403675200,1769466639693,-487.0,0.00014064,2]
[403675201,1769466639702,-487.0,0.00014064,2]
[403675202,1769466639712,-487.0,0.00014064,2]
[403675203,1769466639721,-487.0,0.00014064,2]
[403675204,1769466639731,-487.0,0.00014064,2]
[403675205,1769466639741,-487.0,0.00014064,2]
[403675206,1769466639751,-487.0,0.00014064,2]
[403675207,1769466639760,-487.0,0.00014064,2]
[403675208,1769466639770,-487.0,0.00014064,2]
[403675209,1769466639779,-487.0,0.00014064,2]
[403675210,1769466639790,-487.0,0.00014064,2]
[403675211,1769466639800,-487.0,0.00014064,2]
[403675212,1769466639810,-487.0,0.00014064,2]
[403675213,1769466639819,-487.0,0.00014064,2]
[403675214,1769466639829,-487.0,0.00014064,2]
[403675215,1769466639838,-487.0,0.00014064,2]
[403675216,1769466639847,-487.0,0.00014064,2]
[403675217,1769466639857,-561.11,0.00014064,2]
[403675218,1769466639867,-500.0,0.00014064,2]
[403675219,1769466639877,-2674.60743027,0.00014091,2]
[403675220,1769466639886,-553.64373807,0.00014091,2]
[403675221,1769466639896,-500.0,0.00014091,2]
[403675222,1769466639906,-500.0,0.00014091,2]
[403675223,1769466639916,-500.0,0.00014091,2]
[403675224,1769466639926,-500.0,0.00014091,2]
[403675225,1769466639936,-500.0,0.00014091,2]
[403675226,1769466639946,-201.93286099,0.00014091,2]
[403675227,1769466639955,-500.0,0.00014091,2]
[403675228,1769466639965,-209.40437684,0.00014091,2]
[403675229,1769466639977,-500.0,0.00014091,2]
[403675230,1769466639986,-217.15233878,0.00014091,2]
[403675231,1769466639996,-250.0,0.00014091,2]
[403675232,1769466640006,-500.0,0.00014091,2]
[403675233,1769466640015,-250.0,0.00014091,2]
[403675234,1769466640025,-500.0,0.00014091,2]
[403675235,1769466640035,-225.18697532,0.00014091,2]
[403675236,1769466640044,-233.51889341,0.00014091,2]
[403675237,1769466640053,-500.0,0.00014091,2]
[403675238,1769466640063,-242.15909246,0.00014091,2]
[403675239,1769466640072,-500.0,0.00014091,2]
[403675240,1769466640083,-251.11897888,0.00014091,2]
[403675241,1769466640095,-500.0,0.00014091,2]
[403675242,1769466640104,-260.4103811,0.00014091,2]
[403675243,1769466640115,-270.0455652,0.00014091,2]
[403675244,1769466640128,-280.03725112,0.00014091,2]
[403675245,1769466640137,-290.39862941,0.00014091,2]
[403675246,1769466640147,-301.1433787,0.00014091,2]
[403675247,1769466640156,-151.04745573,0.00014091,2]
[403675248,1769466640167,-668.65185757,0.00014091,2]
[403675249,1769466640176,-1000.0,0.00014247,2]
[403675250,1769466640187,-500.0,0.00014338,2]
[403675251,1769466640196,-1500.0,0.00014368,2]
[403675252,1769466640205,-1500.0,0.00014368,2]
[403675253,1769466640214,-1500.0,0.00014368,2]
[403675254,1769466640224,-1500.0,0.00014368,2]
[403675255,1769466640233,-1500.0,0.00014368,2]
[403675256,1769466640242,-1275.48549169,0.00014449,2]
[403675257,1769466640258,-151.0,0.000145,2]
[403675258,1769466640268,-420.0,0.00014551,2]
[403675260,1769466640277,-150.0,0.00014578,2]
[403675261,1769466640286,-150.0,0.00014578,2]
[403675262,1769466640295,-150.0,0.00014578,2]
[403675263,1769466640305,-150.0,0.00014578,2]
[403675264,1769466640314,-150.0,0.00014578,2]
[403675266,1769466640324,-150.0,0.00014578,2]
[403675267,1769466640334,-150.0,0.00014578,2]
[403675268,1769466640343,-200.0,0.00014578,2]
[403675269,1769466640352,-500.0,0.00014578,2]
[403675270,1769466640361,-150.0,0.00014578,2]
[403675271,1769466640369,-150.0,0.00014578,2]
[403675272,1769466640379,-480.0,0.00014599,2]
[403675273,1769466640388,-151.0,0.000146,2]
[403675274,1769466640397,-500.0,0.00014612,2]
[403675275,1769466640405,-177.37795321,0.00014639,2]
[403675276,1769466640414,-150.0,0.00014715,2]
[403675277,1769466640423,-150.0,0.00014715,2]
[403675278,1769466640432,-150.0,0.00014715,2]
[403675279,1769466640441,-150.0,0.00014715,2]
[403675280,1769466640450,-150.0,0.00014715,2]
[403675281,1769466640461,-150.0,0.00014715,2]
[403675282,1769466640470,-150.0,0.00014715,2]
[403675283,1769466640479,-582.68212944,0.00014715,2]
[403675284,1769466640487,-150.0,0.00014715,2]
[403675285,1769466640496,-150.0,0.00014715,2]
[403675286,1769466640506,-159.62665952,0.00014762,2]
[403675287,1769466640515,-812.58847536,0.00014795,2]
[403675296,1769466640665,-434.47876755,0.00014795,2]
[403675303,1769466640724,-252.93275709,0.00014795,2]
[403675305,1769466640733,-151.0,0.000148,2]
[403675307,1769466640743,-150.0,0.00014852,2]
[403675309,1769466640752,-150.0,0.00014852,2]
[403675311,1769466640762,-137.59312688,0.00014852,2]
[403675576,1769466643625,-12.40687312,0.00014852,2]
[403675577,1769466643634,-250.0,0.00014852,2]
[403675578,1769466643644,-150.0,0.00014852,2]
[403675579,1769466643653,-150.0,0.00014852,2]
[403675580,1769466643662,-150.0,0.00014852,2]
[403675581,1769466643671,-150.0,0.00014852,2]
[403675582,1769466643681,-150.0,0.00014852,2]
[403675583,1769466643690,-224.20443512,0.00014866,2]
[403675584,1769466643700,-116.66338612,0.00014875,2]
[403675585,1769466643712,-1158.82210557,0.00014875,2]
[403675586,1769466643721,-500.0,0.00014886,2]
[403675587,1769466643731,-151.0,0.000149,2]
[403675588,1769466643741,-151.0,0.000149,2]
[403675589,1769466643750,-1500.0,0.00014916,2]
[403675590,1769466643759,-532.28175019,0.00014916,2]
[403675591,1769466643769,-464.2258562,0.00014916,2]
[403675592,1769466643782,-302.62139999,0.00014916,2]
[403675593,1769466643798,-1209.09470627,0.00014916,2]
[403675594,1769466643808,-1500.0,0.00014916,2]
[403675595,1769466643817,-1877.97107003,0.00014916,2]
[403675596,1769466643829,-122.02892997,0.00014916,2]
[403675597,1769466643839,-150.0,0.00014989,2]
[403675598,1769466643848,-150.0,0.00014989,2]
[403675599,1769466643857,-227.0891136,0.00014989,2]
[403675765,1769466646791,-23.95070082,0.00014989,2]
[403675767,1769466646800,-150.0,0.00014989,2]
[403675769,1769466646810,-150.0,0.00014989,2]
[403675771,1769466646821,-150.0,0.00014989,2]
[403675773,1769466646831,-150.0,0.00014989,2]
[403675775,1769466646841,-150.0,0.00014989,2]
[403675777,1769466646852,-151.0,0.00015,2]
[403675779,1769466646863,-642.129087,0.00015068,2]
[403675781,1769466646873,-164.34495881,0.00015092,2]
[403675783,1769466646882,-151.0,0.000151,2]
[403675785,1769466646892,-151.0,0.000151,2]
[403675787,1769466646902,-348.0,0.00015114,2]
[403675789,1769466646912,-150.0,0.00015126,2]
[403675791,1769466646921,-150.0,0.00015126,2]
[403675793,1769466646930,-150.0,0.00015126,2]
[403675795,1769466646939,-150.0,0.00015126,2]
[403675797,1769466646949,-150.0,0.00015126,2]
[403675799,1769466646959,-150.0,0.00015126,2]
[403675801,1769466646968,-150.0,0.00015126,2]
[403675803,1769466646978,-500.0,0.0001516,2]
[403675805,1769466646987,-151.0,0.000152,2]
[403675807,1769466646996,-151.0,0.000152,2]
[403675809,1769466647005,-151.0,0.000152,2]
[403675811,1769466647014,-250.0,0.00015263,2]
[403675813,1769466647022,-250.0,0.00015263,2]
[403675815,1769466647032,-250.0,0.00015263,2]
[403675817,1769466647041,-250.0,0.00015263,2]
[403675819,1769466647050,-250.0,0.00015263,2]
[403675821,1769466647059,-250.0,0.00015263,2]
[403675823,1769466647068,-250.0,0.00015263,2]
[403675825,1769466647078,-559.68574918,0.000153,2]
[403675827,1769466647087,-1275.48549169,0.000153,2]
[403675829,1769466647096,-2482.3918064,0.00015336,2]
[403675831,1769466647106,-10000.0,0.00015342,2]
[403675833,1769466647116,-2000.0,0.00015342,2]
[403675835,1769466647125,-155.078,0.00015399,2]
[403675837,1769466647136,-135991.57142872,0.000154,2]
[403676163,1769466918800,168.25734052,0.0003458,120]
[403676167,1769466923426,-5000.0,0.0001291,2]
[403676168,1769466925170,500.0,0.0003458,120]
[403676171,1769466930208,500.0,0.0003458,120]
[403676175,1769466935221,500.0,0.0003458,120]
[403676176,1769466935255,500.0,0.0003458,120]
[403676178,1769466937031,500.0,0.0003458,120]
[403676179,1769466937267,500.0,0.0003458,120]
[403676181,1769466937520,233.54,0.0003458,120]
[403676182,1769466938459,500.0,0.0003458,120]
[403676184,1769466940334,500.0,0.0003458,120]
[403676186,1769466942336,500.0,0.0003458,120]
[403676187,1769466942680,500.0,0.0003458,120]
[403676188,1769466944204,500.0,0.0003458,120]
[403676190,1769466946048,500.0,0.0003458,120]
[403676192,1769466948031,500.0,0.0003458,120]
[403676196,1769466958712,500.0,0.0003458,120]
[403676197,1769466958962,483.11,0.0003458,120]
[403676199,1769466962655,500.0,0.0003458,120]
[403676201,1769466964183,500.0,0.0003458,120]
[403676204,1769466964614,500.0,0.0003458,120]
[403676205,1769466964720,157.93,0.0003458,120]
[403676206,1769466967074,462.6750489,0.0003458,120]
[403676209,1769466968909,500.0,0.0003458,120]
[403676211,1769466972503,500.0,0.0003458,120]
[403676213,1769466975868,500.0,0.0003458,120]
[403676216,1769466981326,503.41399961,0.0003458,120]
[403676217,1769466982972,500.9633423,0.0003458,120]
[403676218,1769466983339,506.02964702,0.0003458,120]
[403676220,1769466987091,500.0,0.0003458,120]
[403676221,1769466987854,500.0,0.0003458,120]
[403676222,1769466989027,502.07825636,0.0003458,120]
[403676225,1769466994492,500.0,0.0003458,120]
[403676227,1769466997147,502.41027139,0.0003458,120]
[403676228,1769466997743,500.63831503,0.0003458,120]
[403676229,1769466998273,522.12232558,0.0003458,120]
[403676232,1769467001660,501.26814435,0.0003458,120]
[403676236,1769467005673,500.97515855,0.0003458,120]
[403676237,1769467006527,501.72894616,0.0003458,120]
[403676239,1769467007509,501.42089563,0.0003458,120]
[403676240,1769467008429,547.98532371,0.0003458,120]
[403676242,1769467009853,502.52221688,0.0003458,120]
[403676244,1769467013247,501.59765783,0.0003458,120]
[403676246,1769467013949,502.59345923,0.0003458,120]
[403676247,1769467014875,502.25299919,0.0003458,120]
[403676248,1769467015054,501.28178192,0.0003458,120]
[403676250,1769467017436,262.12136854,0.0003458,120]
[403676252,1769467018599,534.62626133,0.0003458,120]
[403676254,1769467020356,500.86579916,0.0003458,120]
[403676255,1769467020388,501.62338014,0.0003458,120]
[403676258,1769467024495,500.0,0.0003458,120]
[403676259,1769467025256,205.66111145,0.0003458,120]
[403676261,1769467026391,500.0,0.0003458,120]
[403676274,1769467048874,509.0746418,0.0003458,120]
[403676275,1769467062134,500.0,0.0003458,120]
[403676276,1769467062594,502.24852987,0.0003458,120]
[403676277,1769467076134,501.72468905,0.0003458,120]
[403676278,1769467077870,500.0,0.0003458,120]
[403676279,1769467084295,552.62716808,0.0003458,120]
[403676280,1769467096592,502.37674477,0.0003458,120]
[403676281,1769467105841,543.11786933,0.0003458,120]
[403676282,1769467114304,503.14324344,0.0003458,120]
[403676284,1769467158057,500.0,0.00034592,120]
[403676285,1769467158302,500.0,0.00034592,120]
[403676287,1769467189847,500.0,0.00034592,120]
[403676288,1769467190080,500.0,0.00034592,120]
[403676289,1769467223744,500.0,0.00034592,120]
[403676290,1769467227259,500.0,0.00034592,120]
[403676291,1769467227489,500.0,0.00034592,120]
[403676299,1769467273122,500.0,0.00034592,120]
[403676305,1769467333434,500.0,0.00034592,120]
[403676306,1769467338154,502.47080629,0.00034592,120]
[403676307,1769467338421,500.0,0.00034592,120]
[403676354,1769467343348,514.12131935,0.00034592,120]
[403676356,1769467345251,481.83551631,0.00034592,120]
[403676358,1769467346862,526.31698077,0.00034592,120]
[403676359,1769467347158,502.41457464,0.00034592,120]
[403676365,1769467352829,500.0,0.00034592,120]
[403676367,1769467354824,500.0,0.00034592,120]
[403676369,1769467361447,500.0,0.00034592,120]
[403676370,1769467367066,500.0,0.00034592,120]
[403676371,1769467368095,535.20632556,0.00034592,120]
[403676372,1769467378775,523.37141385,0.00034592,120]
[403676373,1769467383802,502.44348671,0.00034592,120]
[403676376,1769467394151,525.61159955,0.00034592,120]
[403676393,1769467652098,-189.28831424,0.00013041,2]
[403676394,1769467652120,-605.0,0.00013041,2]
[403676395,1769467652141,-149.72120738,0.00013165,2]
[403676427,1769467748104,-5000.0,0.00011657,2]
[403676428,1769467748128,-156.12772674,0.00011775,2]
[403676430,1769467748151,-185.50254796,0.00012423,2]
[403676431,1769467748178,-944.00952162,0.00013071,2]
[403676432,1769467748200,-3.19727429,0.00013165,2]
[403676433,1769467748222,-300.0,0.00013167,2]
[403676434,1769467748251,-300.0,0.00013167,2]
[403676435,1769467748275,-1200.0,0.00013168,2]
[403676436,1769467748296,-151.309593,0.00013168,2]
[403676437,1769467748318,-50000.0,0.00013168,2]
[403676438,1769467748340,-500.0,0.00013169,2]
[403676439,1769467748362,-405.81670383,0.00013169,2]
[403676440,1769467748384,-500.0,0.00013169,2]
[403676441,1769467748406,-500.0,0.00013169,2]
[403676442,1769467748428,-500.0,0.00013169,2]
[403676443,1769467748450,-500.0,0.00013169,2]
[403676444,1769467748471,-500.0,0.00013169,2]
[403676445,1769467748494,-500.0,0.00013169,2]
[403676446,1769467748517,-500.0,0.00013169,2]
[403676447,1769467748541,-500.0,0.00013169,2]
[403676448,1769467748567,-500.0,0.00013169,2]
[403676449,1769467748591,-500.0,0.00013169,2]
[403676450,1769467748784,-585.84356832,0.00013169,2]
[403676451,1769467748810,-500.0,0.00013169,2]
[403676452,1769467748834,-500.0,0.00013169,2]
[403676453,1769467748858,-539.73320793,0.00013169,2]
[403676454,1769467748879,-500.0,0.00013169,2]
[403676455,1769467748902,-500.0,0.00013169,2]
[403676456,1769467748923,-12.63588258,0.00013169,2]
[403676463,1769467788034,220.0,0.00034592,120]
[403676502,1769467831671,-5000.0,0.00013037,2]
[403676504,1769467831680,-155.0,0.00013168,2]
[403676506,1769467831690,-300.0,0.00013168,2]
[403676508,1769467831699,-300.0,0.00013168,2]
[403676510,1769467831708,-300.0,0.00013168,2]
[403676511,1769467831717,-300.0,0.00013168,2]